Cogmind - Beta 10.2 @@@ ROGUE MODE // 2021.06.17 @ 19:40:33 Player: the cat Result: Destroyed by S-27 Virus with Autogun Performance ------------- Evolutions (4) 2000 Regions Visited (16) 3200 Robots Destroyed (101) 505 Value Destroyed (2732) 2732 Prototype IDs (49) 980 Alien Tech Used (0) 0 Bonus (-540) -540 TOTAL SCORE: 8877 Bonus ------- High Alert Combat Kills 37 Follower Combat Kills 49 Aligned with FarCom 300 Met Data Miner 300 Friendly Fire -1226 Cogmind --------- Core Integrity 0/850 Matter 264/300 Energy 68/100 System Corruption 5% Temperature Cool (1) Movement Flying (35) Location -5/Proximity Caves Parts ------- > --- POWER (1) -------- (None) > --- PROPULSION (4) --- Improved Cesium-ion Thruster Improved Cesium-ion Thruster > --- UTILITY (8) ------ Advanced Signal Interpreter Improved Hacking Suite Deep Network Scanner System Shield System Shield > --- WEAPON (2) ------- (None) > --- INVENTORY (4) ---- Improved Cesium-ion Thruster Energy Well (0) Power Sword Peak State ------------ > --- POWER ------------ Light Fission Core > --- PROPULSION ------- Improved Cesium-ion Thruster Improved Cesium-ion Thruster Improved Cesium-ion Thruster Nuclear Pulse Thruster > --- UTILITY ---------- Large Storage Unit Advanced Signal Interpreter Improved Hacking Suite System Shield System Shield Heart of Steel > --- WEAPON ----------- Greatsword > --- INVENTORY -------- Improved Cesium-ion Thruster Energy Well Experimental Sensor Array Improved Transmission Jammer Advanced ECM Suite Improved Propulsion Shielding Improved Utility Shielding Heavy Plasma Cannon Power Sword [Rating: 76] Favorites ----------- Power Cooled Ion Engine Engine Cooled Ion Engine Power Core Light Nuclear Core Propulsion Improved Cesium-ion Thruster Treads Improved Treads Wheel Armored Wheel Flight Unit Improved Cesium-ion Thruster Utility Hacking Suite Device Advanced Sensor Array Storage Large Storage Unit Processor Advanced Signal Interpreter Hackware Hacking Suite Protection Medium Armor Plating Weapon Katana Energy Gun EM Pulse Gun Energy Cannon EM Pulse Cannon Ballistic Gun AWS/Gauss Launcher YI-UF0's Doublenader Slashing Weapon Katana Build | -11 -10 -9 -9 -9 -8 -8 -7 -7 -7 -6 -6 -6 -6 -6 -6 -5 ------- Run | Scr Mat Mat Min Exi Min Mat Fac Was Fac Fac Was Fac Low Low Dat Pro Slots Evolved 8 | . . 2 . . . 2 2 . . 2 . . . . . . Power . | . . . . . . . . . . . . . . . . . Propulsion 2 | . . 1 . . . . . . . 1 . . . . . . Utility 6 | . . 1 . . . 2 2 . . 1 . . . . . . Weapon . | . . . . . . . . . . . . . . . . . Parts Attached 197 | 6 8 22 1 1 4 8 51 . 30 24 . 25 . 6 1 10 Power 19 | 1 1 2 . . . . 7 . 5 1 . 1 . . . 1 Engine 7 | 1 . 2 . . . . 3 . . 1 . . . . . . Core 12 | . 1 . . . . . 4 . 5 . . 1 . . . 1 Reactor . | . . . . . . . . . . . . . . . . . Propulsion 31 | 2 2 6 . . 1 3 6 . 3 3 . 4 . . 1 . Treads 9 | 1 1 4 . . 1 2 . . . . . . . . . . Leg . | . . . . . . . . . . . . . . . . . Wheel 5 | 1 1 2 . . . 1 . . . . . . . . . . Hover . | . . . . . . . . . . . . . . . . . Flight 17 | . . . . . . . 6 . 3 3 . 4 . . 1 . Utility 99 | 1 3 8 . . . 3 27 . 15 19 . 14 . 6 . 3 Device 38 | . . . . . . . 12 . 8 8 . 7 . 3 . . Storage 14 | 1 2 4 . . . 1 1 . 1 2 . 1 . . . 1 Processor 4 | . . . . . . . 2 . 1 . . 1 . . . . Hackware 19 | . . . . . . . 5 . 2 5 . 5 . . . 2 Protection 24 | . 1 4 . . . 2 7 . 3 4 . . . 3 . . Artifact . | . . . . . . . . . . . . . . . . . Weapon 48 | 2 2 6 1 1 3 2 11 . 7 1 . 6 . . . 6 Energy Gun 2 | 1 1 . . . . . . . . . . . . . . . Energy Cannon 20 | . . 3 . . 2 1 5 . 2 . . 1 . . . 6 Ballistic Gun 8 | 1 1 3 . 1 1 1 . . . . . . . . . . Ballistic Cannon . | . . . . . . . . . . . . . . . . . Launcher 3 | . . . 1 . . . 1 . . . . 1 . . . . Special Weapon . | . . . . . . . . . . . . . . . . . Impact Weapon . | . . . . . . . . . . . . . . . . . Slashing Weapon 15 | . . . . . . . 5 . 5 1 . 4 . . . . Piercing Weapon . | . . . . . . . . . . . . . . . . . Special Melee Weapon . | . . . . . . . . . . . . . . . . . Unidentified Prototypes 7 | . . 1 1 . . . 1 . 1 . . . . 1 . 2 Parts Lost 28 | . 1 2 . . . . 3 . 4 5 . 3 . 2 4 4 Power 5 | . . . . . . . 2 . . 1 . . . . 1 1 Propulsion 8 | . . . . . . . 1 . 2 1 . 2 . . 2 . Utility 11 | . . . . . . . . . 2 3 . 1 . 2 . 3 Weapon 4 | . 1 2 . . . . . . . . . . . . 1 . Highest Loss Streak 4 | . 1 1 . . . . 1 . 2 2 . 2 . 1 4 2 Average Slot Usage (%) 91 | . 93 100 100 92 89 89 90 92 85 91 93 90 93 88 82 76 Engine 4 | . 10 10 11 11 11 9 . . . . 6 . . . . . Core 3 | . 3 . . . . . 5 7 5 4 . 5 6 6 5 4 Treads 9 | . 14 21 22 22 21 17 . . . . . . . . . . Wheel 5 | . 14 11 11 11 11 8 . . . . . . . . . . Flight 12 | . . . . . . . 22 23 20 25 26 24 26 26 25 19 Device 3 | . . . . . . . 6 7 5 5 6 5 6 5 6 5 Storage 16 | . 17 25 33 33 33 34 7 7 7 7 6 6 6 6 6 6 Processor 3 | . . . . . . . 7 7 7 6 6 6 6 6 6 6 Hackware 16 | . . . . . . . 28 30 28 31 33 33 33 25 20 25 Protection 2 | . 4 7 . . . 7 1 . 1 . . . . 3 6 5 Energy Gun 1 | . 14 6 . . . . . . . . . . . . . . Energy Cannon 2 | . . 9 11 4 2 1 . . . . . . . . . . Ballistic Gun 3 | . 14 5 1 6 9 9 . . . . . . . . . . Launcher 1 | . . . 9 4 . . . . . . . . . . . . Slashing Weapon 2 | . . . . . . . 6 7 5 6 6 5 6 6 5 . Naked Turns . | . . . . . . . . . . . . . . . . . Heaviest Build 122 | 12 40 97 100 100 100 122 18 18 18 33 31 31 29 33 31 24 Greatest Support 46 | 20 20 24 12 12 23 46 20 20 24 32 32 32 32 32 32 24 Greatest Overweight (x) 10 | . 3 8 8 8 8 10 . . 1 1 . 1 . 1 . 7 Average Overweight (x) 1 | . . 5 8 7 7 9 . . . . . . . . . . Largest Inventory Capacity 36 | 6 16 26 26 26 26 32 36 8 8 10 10 10 10 10 10 10 Average Capacity 15 | 5 8 19 26 26 26 31 8 8 8 9 10 10 10 10 10 9 Most Carried 32 | 5 16 25 25 26 26 32 30 8 8 10 10 10 10 10 10 8 Average Carried 14 | 2 6 18 25 25 25 29 8 8 7 9 9 9 9 8 8 6 Final Capacity 32 | 6 16 26 26 26 26 32 8 8 8 10 10 10 10 10 10 4 Final Carried 31 | 4 16 25 25 26 26 31 8 8 8 10 10 10 10 8 9 3 Class Distribution -------------------- 40% | Hacker-Sprinter 30% | Hauler-Mutant 15% | Mutant 10% | Hacker-Mutant Dominant Class ---------------- Mutant | -10/Materials Mutant | -9/Materials Hauler-Mutant | -9/Mines Hauler-Mutant | -9/Exiles Hauler-Mutant | -8/Mines Hauler-Mutant | -8/Materials Hacker-Sprinter | -7/Factory Hacker-Sprinter | -7/Waste Hacker-Sprinter | -7/Factory Hacker-Sprinter | -6/Factory Hacker-Sprinter | -6/Waste Hacker-Sprinter | -6/Factory Wizard-Sprinter | -6/Lower Caves Hacker-Sprinter | -6/Lower Caves Hacker-Sprinter | -6/Data Miner Hacker-Sprinter | -5/Proximity Caves Resources | -11 -10 -9 -9 -9 -8 -8 -7 -7 -7 -6 -6 -6 -6 -6 -6 -5 ----------- Run | Scr Mat Mat Min Exi Min Mat Fac Was Fac Fac Was Fac Low Low Dat Pro Matter Collected 2710 | 251 127 309 175 . 50 101 416 . 492 265 . 350 . 93 . 81 Remotely . | . . . . . . . . . . . . . . . . . Salvage Created 4437 | . 416 1199 139 . 195 1135 422 . 93 245 . 520 . 47 26 . Parts 246 | . 35 63 10 . 8 56 27 . 10 15 . 15 . 4 3 . Haulers Intercepted 11 | . 2 5 . . . 2 . . . 1 . 1 . . . . Recyclers Shooed 1 | . . . . . 1 . . . . . . . . . . . Parts Field Recycled . | . . . . . . . . . . . . . . . . . Retrieved Matter . | . . . . . . . . . . . . . . . . . Parts Self-Destructed 1 | . . . . . . . . . . . . . . . . 1 Prevented 1 | . . . . . . . . . . . . . . . . 1 Kills | -11 -10 -9 -9 -9 -8 -8 -7 -7 -7 -6 -6 -6 -6 -6 -6 -5 ------- Run | Scr Mat Mat Min Exi Min Mat Fac Was Fac Fac Was Fac Low Low Dat Pro Combat Hostiles Destroyed 56 | . 9 19 1 . 2 16 4 . 1 2 . . . 2 . . Melee 4 | . . . . . . . . . . 2 . . . 2 . . Guns 29 | . 9 5 . . 1 14 . . . . . . . . . . Cannons 19 | . . 11 1 . 1 1 4 . 1 . . . . . . . AOE 4 | . . 3 . . . 1 . . . . . . . . . . Classes Destroyed 14 | . 5 3 1 . 2 1 1 . . . . . . 1 . . Worker 4 | . . . 1 . . . 3 . . . . . . . . . Builder 1 | . . 1 . . . . . . . . . . . . . . Tunneler 2 | . 1 . . . . . . . 1 . . . . . . . Hauler 11 | . 2 5 . . . 2 . . . 1 . 1 . . . . Recycler 5 | . . . . . 1 1 1 . . . . 2 . . . . Operator 10 | . 1 2 . . . 1 3 . 1 1 . 1 . . . . Watcher 10 | . . 3 . . . 4 1 . . 1 . 1 . . . . Swarmer 10 | . 5 4 1 . . . . . . . . . . . . . Grunt 24 | . 4 10 . . 1 9 . . . . . . . . . . Duelist 2 | . . . . . 1 1 . . . . . . . . . . Sentry 10 | . . 5 . . . 5 . . . . . . . . . . Hunter 1 | . . . . . . 1 . . . . . . . . . . Programmer 7 | . . . . . . . 4 . 1 2 . . . . . . Master Thief 2 | . . . . . . . . . . . . . . 2 . . Best Kill Streak 5 | . 3 5 1 . 1 5 1 . 1 2 . 2 . 2 1 . Combat Bots Only 5 | . 3 5 1 . 1 4 1 . 1 1 . . . 2 . . Max Kills in Single Turn 2 | . 1 2 1 . 1 1 1 . 1 1 . 1 . 1 1 . Gunslinging . | . . . . . . . . . . . . . . . . . Exploded 2 | . . 2 . . . 1 . . . . . . . . . . Melee 1 | . . . . . . . . . . 1 . . . 1 . . Uniques/NPCs Destroyed 2 | . . . 1 . . . . . . . . . . . 1 . YI-UF0 (-9/Mines) Data Miner (-6/Data Miner) Combat | -11 -10 -9 -9 -9 -8 -8 -7 -7 -7 -6 -6 -6 -6 -6 -6 -5 -------- Run | Scr Mat Mat Min Exi Min Mat Fac Was Fac Fac Was Fac Low Low Dat Pro Damage Taken 4268 | . 359 634 19 . 78 229 734 . 352 337 . 382 7 127 272 738 Core 1305 | . 58 92 . . . . 148 . 156 81 . 224 7 27 45 467 Absorbed by Shields . | . . . . . . . . . . . . . . . . . Core Remaining (%) 81 | 100 76 . . . 77 100 . . 56 . . . . . . . Volleys Fired 189 | . 40 71 10 . 6 7 18 . 13 . . . . . . 24 Largest 2 | . 2 2 2 . 2 2 1 . 1 . . . . . . 1 Hottest 126 | . 60 103 86 . 126 94 80 . 80 . . . . . . 90 Shots Fired 344 | . 79 113 15 . 13 70 18 . 12 . . . . . . 24 Gun 195 | . 79 47 5 . 1 63 . . . . . . . . . . Cannon 146 | . . 66 8 . 12 7 17 . 12 . . . . . . 24 Launcher 3 | . . . 2 . . . 1 . . . . . . . . . Special . | . . . . . . . . . . . . . . . . . Kinetic 143 | . 40 34 5 . 1 63 . . . . . . . . . . Thermal 53 | . . . . . . . 17 . 12 . . . . . . 24 Explosive 3 | . . . 2 . . . 1 . . . . . . . . . Electromagnetic 145 | . 39 79 8 . 12 7 . . . . . . . . . . Robot Hit Streak 11 | . 10 10 6 . 5 11 7 . 2 . . . . . . . Robot Miss Streak 5 | . 5 4 2 . 1 3 2 . 1 . . . . . . . Penetration Max . | . . . . . . . . . . . . . . . . . Secondary Targets 2 | . 1 1 . . . . . . . . . . . . . . Max Gunslinging Chain 1 | . 1 1 . . . . . . . . . . . . . . Autonomous 58 | . . . . . 1 57 . . . . . . . . . . Shots Hit Robots 252 | . 42 72 8 . 10 54 24 . 6 14 . 16 . 5 1 . Core Hits 119 | . 17 31 6 . 4 30 14 . 2 6 . 6 . 2 1 . Critical Hits 1 | . . . . . . 1 . . . . . . . . . . Critical Kills . | . . . . . . . . . . . . . . . . . Critical Parts Destroyed 1 | . . . . . . 1 . . . . . . . . . . Melee Attacks 309 | . . . . . . . 75 . 83 71 . 63 . 16 1 . Impact . | . . . . . . . . . . . . . . . . . Slashing 309 | . . . . . . . 75 . 83 71 . 63 . 16 1 . Piercing . | . . . . . . . . . . . . . . . . . Sneak Attacks 15 | . . . . . . . 4 . 3 2 . 5 . . 1 . Combat Hostiles . | . . . . . . . . . . . . . . . . . Follow-up Attacks . | . . . . . . . . . . . . . . . . . Damage Inflicted 9213 | . 564 1924 253 . 273 1764 1173 . 446 664 . 1736 . 231 185 . Guns 2414 | . 463 398 51 . 35 1467 . . . . . . . . . . Cannons 2425 | . . 1378 160 . 238 118 405 . 126 . . . . . . . Explosions 520 | . 101 148 42 . . 179 50 . . . . . . . . . Melee 3854 | . . . . . . . 718 . 320 664 . 1736 . 231 185 . Ramming . | . . . . . . . . . . . . . . . . . Kinetic 1997 | . 132 312 51 . 35 1467 . . . . . . . . . . Thermal 959 | . 101 148 . . . 179 405 . 126 . . . . . . . Explosive 92 | . . . 42 . . . 50 . . . . . . . . . Electromagnetic 2311 | . 331 1464 160 . 238 118 . . . . . . . . . . Impact . | . . . . . . . . . . . . . . . . . Slashing 3854 | . . . . . . . 718 . 320 664 . 1736 . 231 185 . Piercing . | . . . . . . . . . . . . . . . . . Highest Corruption 17 | . 2 . . . . . 8 16 17 4 4 5 5 5 5 5 Average Corruption 6 | . 2 . . . . . 6 12 16 2 4 4 5 5 5 5 Corruption Purged . | . . . . . . . . . . . . . . . . . Effects 244 | . 9 . . . . . 39 . 119 8 1 35 4 9 2 18 Message Errors 47 | . 6 . . . . . 8 . 13 1 . 8 1 3 . 7 Matter Fused 35 | . . . . . . . 7 . 14 1 . 7 . 2 . 4 Heat Flow Errors 23 | . . . . . . . 6 . 7 1 . 6 . 2 . 1 Energy Discharges 25 | . 2 . . . . . 4 . 9 1 1 5 1 . 1 1 Parts Rejected 2 | . . . . . . . 1 . 1 . . . . . . . Data Loss (minor) 28 | . 1 . . . . . 6 . 10 . . 6 2 1 1 1 Data Loss (major) 4 | . . . . . . . 3 . 1 . . . . . . . Misfires 1 | . . . . . . . . . . . . . . . . 1 Alerts 2 | . . . . . . . . . 2 . . . . . . . Misdirections 41 | . . . . . . . . . 41 . . . . . . . Targeting Errors 34 | . . . . . . . 4 . 20 4 . 3 . 1 . 2 Weapon Failures 2 | . . . . . . . . . 1 . . . . . . 1 Overload Shots . | . . . . . . . . . . . . . . . . . Overflow Damage 813 | . . 48 . . 24 . 58 . 125 9 . 530 . 19 . . Projectiles 72 | . . 48 . . 24 . . . . . . . . . . . Explosions . | . . . . . . . . . . . . . . . . . Melee 741 | . . . . . . . 58 . 125 9 . 530 . 19 . . Knockbacks . | . . . . . . . . . . . . . . . . . Impact . | . . . . . . . . . . . . . . . . . Kinetic . | . . . . . . . . . . . . . . . . . Secondary . | . . . . . . . . . . . . . . . . . Self-Inflicted Damage 38 | . . 19 19 . . . . . . . . . . . . . Shots 2 | . . 1 1 . . . . . . . . . . . . . Rammed . | . . . . . . . . . . . . . . . . . Targets Rammed . | . . . . . . . . . . . . . . . . . Kicked . | . . . . . . . . . . . . . . . . . Crushed . | . . . . . . . . . . . . . . . . . Highest Temperature 439 | . 151 408 27 . 180 198 267 . 439 165 . 283 . 222 14 180 Average Temperature 85 | . 43 86 12 . 69 79 86 . 130 76 . 128 . 82 8 65 Received Heat Transfer 744 | . 81 210 . . 45 99 66 . 63 12 . 24 . 36 36 72 Effects 8 | . . 4 . . . . . . 4 . . . . . . . Shutdowns 2 | . . 1 . . . . . . 1 . . . . . . . Interference 2 | . . 2 . . . . . . . . . . . . . . Matter Decay 2 | . . . . . . . . . 2 . . . . . . . Short Circuit 1 | . . 1 . . . . . . . . . . . . . . Damage (minor) 1 | . . . . . . . . . 1 . . . . . . . Siege Activations . | . . . . . . . . . . . . . . . . . Robots Corrupted 3 | . . 3 . . . . . . . . . . . . . . Combat Hostiles . | . . . . . . . . . . . . . . . . . Parts Fried 13 | . . 11 . . 2 . . . . . . . . . . . Impact Corruptions . | . . . . . . . . . . . . . . . . . Robots Melted . | . . . . . . . . . . . . . . . . . Combat Hostiles . | . . . . . . . . . . . . . . . . . Parts Melted 4 | . . . . . . . 3 . 1 . . . . . . . Heat Transferred 1220 | . 150 200 . . . 150 520 . 200 . . . . . . . Parts Sabotaged . | . . . . . . . . . . . . . . . . . Parts Stolen 4 | . . . . . . . . . . . . . . 4 . . Parts Stripped . | . . . . . . . . . . . . . . . . . Power Chain Reactions 5 | . 2 3 . . . . . . . . . . . . . . Missiles Intercepted . | . . . . . . . . . . . . . . . . . Alert | -11 -10 -9 -9 -9 -8 -8 -7 -7 -7 -6 -6 -6 -6 -6 -6 -5 ------- Run | Scr Mat Mat Min Exi Min Mat Fac Was Fac Fac Was Fac Low Low Dat Pro Peak Influence 599 | . 170 292 96 . 59 456 520 70 599 266 55 486 . . . . Initial 256 | . . 14 60 . . . 133 55 49 256 40 38 . . . . Average 150 | . 88 159 45 . 5 281 228 56 242 102 50 106 . . . . Maximum Alert Level 2 | . . 1 . . . 2 2 . 2 1 . 2 . . . . Low Security (%) 68 | 100 100 57 100 . 100 7 50 100 66 82 100 78 . . . . Level 1 24 | . . 42 . . . 87 35 . . 17 . 21 . . . . Level 2 6 | . . . . . . 5 14 . 33 . . . . . . . Level 3 . | . . . . . . . . . . . . . . . . . Level 4 . | . . . . . . . . . . . . . . . . . Level 5 . | . . . . . . . . . . . . . . . . . High Security . | . . . . . . . . . . . . . . . . . Max Security . | . . . . . . . . . . . . . . . . . Squads Dispatched 19 | . 1 . . . . 2 4 . 2 5 . 4 . . . 1 Investigation 2 | . . . . . . 1 . . . 1 . . . . . . Extermination 8 | . . . . . . . 2 . 2 2 . 2 . . . . Reinforcement 8 | . 1 . . . . 1 2 . . 2 . 2 . . . . Assault 1 | . . . . . . . . . . . . . . . . 1 Garrison . | . . . . . . . . . . . . . . . . . Intercept . | . . . . . . . . . . . . . . . . . Construction Impeded 1 | . . . . . . 1 . . . . . . . . . . Haulers Reinforced 1 | . . . . . . . . . . 1 . . . . . . Stealth | -11 -10 -9 -9 -9 -8 -8 -7 -7 -7 -6 -6 -6 -6 -6 -6 -5 --------- Run | Scr Mat Mat Min Exi Min Mat Fac Was Fac Fac Was Fac Low Low Dat Pro Distress Signals 13 | . 1 1 . . . 2 3 . 2 3 . 1 . . . . Communications Jammed . | . . . . . . . . . . . . . . . . . Distress Signals . | . . . . . . . . . . . . . . . . . Times Spotted 253 | . 20 34 4 . 2 18 41 3 23 29 3 17 2 16 4 37 Peak Tracking Total 20 | . 4 7 3 . 2 5 8 3 7 6 3 5 2 8 4 20 Tactical Retreats 46 | . 1 . 1 . . . 16 . 7 6 . 3 . 4 . 8 Traps | -11 -10 -9 -9 -9 -8 -8 -7 -7 -7 -6 -6 -6 -6 -6 -6 -5 ------- Run | Scr Mat Mat Min Exi Min Mat Fac Was Fac Fac Was Fac Low Low Dat Pro Traps Triggered 12 | . 1 . . . . 3 2 . . 2 . 4 . . . . Indirectly . | . . . . . . . . . . . . . . . . . Trap Hack Attempts . | . . . . . . . . . . . . . . . . . Triggered . | . . . . . . . . . . . . . . . . . Disarmed . | . . . . . . . . . . . . . . . . . Reprogrammed . | . . . . . . . . . . . . . . . . . Reused . | . . . . . . . . . . . . . . . . . Traps Extracted . | . . . . . . . . . . . . . . . . . Installed . | . . . . . . . . . . . . . . . . . Triggered 2 | . . . . . . . . . . . . . . . . 2 Machines | -11 -10 -9 -9 -9 -8 -8 -7 -7 -7 -6 -6 -6 -6 -6 -6 -5 ---------- Run | Scr Mat Mat Min Exi Min Mat Fac Was Fac Fac Was Fac Low Low Dat Pro Machines Disabled 8 | . 2 2 . . . 1 2 . 1 . . . . . . . Max in Single Turn 1 | . 1 1 . . . 1 1 . 1 . . . . . . . Garrison Access 8 | . . . . . . . 3 . 2 1 . 2 . . . . Machines Sabotaged . | . . . . . . . . . . . . . . . . . Garrisons Compromised . | . . . . . . . . . . . . . . . . . Overloaded Fab Kills . | . . . . . . . . . . . . . . . . . Fab Network Shutdowns 2 | . . . . . . . . . 1 . . 1 . . . . Hacking | -11 -10 -9 -9 -9 -8 -8 -7 -7 -7 -6 -6 -6 -6 -6 -6 -5 --------- Run | Scr Mat Mat Min Exi Min Mat Fac Was Fac Fac Was Fac Low Low Dat Pro Machines Accessed 89 | . 6 6 . 2 . 8 20 . 11 11 . 19 . 2 4 . Terminals 60 | . 5 6 . . . 7 14 . 7 8 . 13 . . . . Fabricators 7 | . . . . . . . 2 . 2 . . 3 . . . . Repair Stations 1 | . . . . . . . . . . . . 1 . . . . Recycling Units 4 | . 1 . . . . . 1 . . 2 . . . . . . Scanalyzers 1 | . . . . . . 1 . . . . . . . . . . Garrison Access 8 | . . . . . . . 3 . 2 1 . 2 . . . . Total Hacks 366 | . 32 27 . 5 . 30 67 . 33 55 . 86 . 2 29 . Successful 268 | . 19 17 . 5 . 13 49 . 26 44 . 64 . 2 29 . Failed 94 | . 12 9 . . . 17 17 . 7 11 . 21 . . . . Catastrophic 5 | . 1 1 . . . 3 . . . . . . . . . . Database Lockouts 4 | . 1 1 . . . . 1 . . . . 1 . . . . Manual 213 | . 18 17 . 1 . 19 44 . 23 41 . 50 . . . . Terminals 273 | . 29 27 . . . 26 57 . 25 48 . 61 . . . . Fabricators 30 | . . . . . . . 5 . 6 . . 19 . . . . Repair Stations 3 | . . . . . . . . . . . . 3 . . . . Recycling Units 11 | . 3 . . . . . 2 . . 6 . . . . . . Scanalyzers 4 | . . . . . . 4 . . . . . . . . . . Garrison Access 9 | . . . . . . . 3 . 2 1 . 3 . . . . Terminal Hacks 159 | . 10 12 . 5 . 5 25 . 12 29 . 30 . 2 29 . Record 15 | . . . . 4 . . . . . . . . . . 11 . Part Schematic 24 | . . 2 . . . 1 2 . 2 3 . 5 . . 9 . Robot Schematic 6 | . . . . . . . . . . . . . . . 6 . Robot Analysis 1 | . 1 . . . . . . . . . . . . . . . Prototype ID Bank 7 | . 1 2 . . . . 1 . . . . . . . 3 . Open Door 2 | . . . . . . . . . . . . . . 2 . . Level Access Points 4 | . . . . . . . 1 . 1 1 . 1 . . . . Branch Access Points 3 | . 1 . . . . 1 . . . . . 1 . . . . Emergency Access Points 2 | . . . . . . . . . . 1 . 1 . . . . Terminal Index 4 | . . . . . . . 1 . 1 1 . 1 . . . . Fabricator Index 3 | . . . . . . . 1 . . 1 . 1 . . . . Repair Station Index 2 | . . . . . . . . . . 1 . 1 . . . . Recycling Unit Index 1 | . . . . . . . . . . 1 . . . . . . Scanalyzer Index 2 | . 1 . . . . . . . . 1 . . . . . . Garrison Index 2 | . . . . . . . 1 . . 1 . . . . . . Alert Level 8 | . 1 1 . . . . 2 . . 2 . 2 . . . . Unreport Threat 8 | . . . . . . . 3 . . 2 . 3 . . . . Locate Traps 17 | . 1 1 . . . . 3 . 2 3 . 7 . . . . Recall Investigation 2 | . . . . . . 1 1 . . . . . . . . . Recall Extermination 5 | . . . . . . . . . 2 1 . 2 . . . . Recall Reinforcements 3 | . . . . . . . 1 . . 2 . . . . . . Hauler Manifests 3 | . 1 1 . . . . . . . 1 . . . . . . Registered Components 4 | . . 2 . . . . 1 . . 1 . . . . . . Registered Prototypes 3 | . . 1 . . . . 1 . . 1 . . . . . . Zone Layout 27 | . 3 2 . . . 2 6 . 4 5 . 5 . . . . EX-Prototype ID Bank 1 | . . . . 1 . . . . . . . . . . . . Fabricator Hacks 20 | . . . . . . . 5 . 4 . . 11 . . . . Load Schematic 8 | . . . . . . . 2 . 2 . . 4 . . . . Build 12 | . . . . . . . 3 . 2 . . 7 . . . . Repair Station Hacks 2 | . . . . . . . . . . . . 2 . . . . Scan Component 1 | . . . . . . . . . . . . 1 . . . . Repair 1 | . . . . . . . . . . . . 1 . . . . Recycling Unit Hacks 4 | . 1 . . . . . . . . 3 . . . . . . Report Inventory 2 | . . . . . . . . . . 2 . . . . . . Retrieve Components 2 | . 1 . . . . . . . . 1 . . . . . . Scanalyzer 2 | . . . . . . 2 . . . . . . . . . . Insert Component 1 | . . . . . . 1 . . . . . . . . . . Analyze 1 | . . . . . . 1 . . . . . . . . . . Garrison Access Hacks 8 | . . . . . . . 3 . 2 1 . 2 . . . . Seal Access 8 | . . . . . . . 3 . 2 1 . 2 . . . . Unauthorized Hacks 73 | . 8 5 . . . 6 16 . 8 11 . 19 . . . . Terminals 61 | . 7 5 . . . 6 15 . 7 8 . 13 . . . . Track 16 | . 2 1 . . . . 5 . 2 2 . 4 . . . . Assimilate 6 | . . . . . . . 1 . 2 . . 3 . . . . Botnet 33 | . 4 3 . . . 4 8 . 3 5 . 6 . . . . Disrupt 1 | . . . . . . . 1 . . . . . . . . . Operators 5 | . 1 1 . . . 2 . . . 1 . . . . . . Fabricators 6 | . . . . . . . . . 1 . . 5 . . . . Report 1 | . . . . . . . . . . . . 1 . . . . Prioritize 2 | . . . . . . . . . . . . 2 . . . . Siphon 2 | . . . . . . . . . 1 . . 1 . . . . Haulers 1 | . . . . . . . . . . . . 1 . . . . Repair Stations 1 | . . . . . . . . . . . . 1 . . . . Mechanics 1 | . . . . . . . . . . . . 1 . . . . Recycling Units 5 | . 1 . . . . . 1 . . 3 . . . . . . Reject 1 | . . . . . . . . . . 1 . . . . . . Recyclers 3 | . 1 . . . . . 1 . . 1 . . . . . . Mask 1 | . . . . . . . . . . 1 . . . . . . Scanalyzers . | . . . . . . . . . . . . . . . . . Garrison Access . | . . . . . . . . . . . . . . . . . Data Cores Recovered 3 | . . . . . . 1 1 . . . . 1 . . . . Used 1 | . . . . . . . 1 . . . . . . . . . Hacking Detections 68 | . 5 6 . . . 7 17 . 9 8 . 16 . . . . Full Trace Events 1 | . . . . . . . . . . 1 . . . . . . Feedback Events 1 | . . . . . . . . . . 1 . . . . . . Hackware Fried 1 | . . . . . . . . . . 1 . . . . . . Feedback Blocked . | . . . . . . . . . . . . . . . . . Robot Schematics Acquired 6 | . . . . . . . . . . . . . . . 6 . Robots Built . | . . . . . . . . . . . . . . . . . Matter . | . . . . . . . . . . . . . . . . . Time . | . . . . . . . . . . . . . . . . . Total Robot Build Rating . | . . . . . . . . . . . . . . . . . Part Schematics Acquired 25 | . . 2 . . . 2 2 . 2 3 . 5 . . 9 . Parts Built 11 | . . . . . . . 3 . 2 . . 6 . . . . Matter 2277 | . . . . . . . 570 . 441 . . 1266 . . . . Time 629 | . . . . . . . 248 . 134 . . 247 . . . . Total Part Build Rating 54 | . . . . . . . 15 . 8 . . 31 . . . . Parts Repaired 1 | . . . . . . . . . . . . 1 . . . . Time 25 | . . . . . . . . . . . . 25 . . . . Parts Recycled . | . . . . . . . . . . . . . . . . . Recycled Matter . | . . . . . . . . . . . . . . . . . Retrieved Matter . | . . . . . . . . . . . . . . . . . Retrieved Components 4 | . 1 . . . . . . . . 3 . . . . . . Parts Scanalyzed 1 | . . . . . . 1 . . . . . . . . . . Part Schematics Acquired 1 | . . . . . . 1 . . . . . . . . . . Parts Damaged . | . . . . . . . . . . . . . . . . . Bothacking | -11 -10 -9 -9 -9 -8 -8 -7 -7 -7 -6 -6 -6 -6 -6 -6 -5 ------------ Run | Scr Mat Mat Min Exi Min Mat Fac Was Fac Fac Was Fac Low Low Dat Pro Used RIF Installer . | . . . . . . . . . . . . . . . . . Robots Hacked . | . . . . . . . . . . . . . . . . . Non-combat . | . . . . . . . . . . . . . . . . . Combat . | . . . . . . . . . . . . . . . . . Robot Hacks Applied . | . . . . . . . . . . . . . . . . . Relay Couplers Released . | . . . . . . . . . . . . . . . . . Robots Rewired . | . . . . . . . . . . . . . . . . . Allies Hacked . | . . . . . . . . . . . . . . . . . Hacks Repelled . | . . . . . . . . . . . . . . . . . Allies | -11 -10 -9 -9 -9 -8 -8 -7 -7 -7 -6 -6 -6 -6 -6 -6 -5 -------- Run | Scr Mat Mat Min Exi Min Mat Fac Was Fac Fac Was Fac Low Low Dat Pro Total Allies 7 | . . . 3 . . . 1 1 2 . . . . . . . Largest Group 3 | . . . 3 3 3 . 1 1 1 . . . . . . . Highest-Rated Group 40 | . . . 40 40 40 . 10 31 26 . . . . . . . Highest-Rated Ally 31 | . . . 16 16 16 . 10 31 26 . . . . . . . Total Orders . | . . . . . . . . . . . . . . . . . Ally Attacks 19 | . . . 3 . 8 . . 8 . . . . . . . . Total Damage 317 | . . . 29 . 119 . . 169 . . . . . . . . Kills 3 | . . . 2 . 1 . . . . . . . . . . . Allies Corrupted . | . . . . . . . . . . . . . . . . . Allies Melted . | . . . . . . . . . . . . . . . . . Intel | -11 -10 -9 -9 -9 -8 -8 -7 -7 -7 -6 -6 -6 -6 -6 -6 -5 ------- Run | Scr Mat Mat Min Exi Min Mat Fac Was Fac Fac Was Fac Low Low Dat Pro Robot Analysis Total 1 | . 1 . . . . . . . . . . . . . . . Derelict Logs Recovered 5 | . . . 1 . . . . . . . . . 2 1 . 1 Drone Launches . | . . . . . . . . . . . . . . . . . Drone Recoveries . | . . . . . . . . . . . . . . . . . Exploration | -11 -10 -9 -9 -9 -8 -8 -7 -7 -7 -6 -6 -6 -6 -6 -6 -5 ------------- Run | Scr Mat Mat Min Exi Min Mat Fac Was Fac Fac Was Fac Low Low Dat Pro Turns Passed 13279 | 47 908 1637 1187 532 567 1165 1641 31 1340 1619 32 1541 100 281 52 599 Spaces Moved 15498 | 34 661 898 680 310 300 586 2810 102 2197 2513 91 2524 350 538 116 788 Core 47 | 2 . . . . . . . . . . . . . . . 45 Treads 86 | 2 4 70 . . 9 1 . . . . . . . . . . Legs . | . . . . . . . . . . . . . . . . . Wheels 3381 | 30 657 828 680 310 291 585 . . . . . . . . . . Hover . | . . . . . . . . . . . . . . . . . Flight 11984 | . . . . . . . 2810 102 2197 2513 91 2524 350 538 116 743 Fastest Speed 26 | 50 90 110 170 160 170 170 29 30 29 27 28 26 27 27 27 29 Average Speed 57 | 100 105 149 170 169 172 187 29 30 32 28 28 28 27 27 27 31 Slowest Speed 400 | 160 160 220 170 170 240 200 32 30 100 100 28 100 27 95 29 400 Overloaded Moves . | . . . . . . . . . . . . . . . . . Propulsion Burnouts . | . . . . . . . . . . . . . . . . . Robots Hopped 55 | . . . . . . . 12 . 12 14 . 14 . 3 . . Cave-ins Triggered . | . . . . . . . . . . . . . . . . . Exploration Rate (%) 58 | 4 86 60 99 61 49 49 68 64 36 37 72 52 60 63 78 60 Regions Visited 16 Branch Regions 7 Pre-discovered Areas 5 | . . . 1 1 . . . . . . . . 1 1 1 . Known Exits Taken 5 | . . . . . . . . . 1 . . 1 1 1 1 . Unknown Exits Taken 7 | 1 1 1 1 1 1 1 . . . . . . . . . . Scrap Searched 6 | . . . 1 . . . . . . . . . 2 3 . . Spaces Dug 246 | . . . . . . . 51 . 80 50 . 37 . 6 . 22 Terrain Destroyed 343 | . 4 9 19 . 2 49 63 . 80 50 . 37 . 6 . 24 Melee 220 | . . . . . . . 51 . 76 50 . 37 . 6 . . Projectile 55 | . . . . . 2 25 . . 4 . . . . . . 24 AOE 68 | . 4 9 19 . . 24 12 . . . . . . . . . Terrain Rammed . | . . . . . . . . . . . . . . . . . Walls Destroyed . | . . . . . . . . . . . . . . . . . Machines Disabled . | . . . . . . . . . . . . . . . . . Actions | -11 -10 -9 -9 -9 -8 -8 -7 -7 -7 -6 -6 -6 -6 -6 -6 -5 --------- Run | Scr Mat Mat Min Exi Min Mat Fac Was Fac Fac Was Fac Low Low Dat Pro Total 19059 | 44 806 1095 696 318 341 647 3496 101 2674 3288 98 3203 355 640 133 1124 Wait 2568 | . 73 41 5 . 23 19 492 . 334 662 2 545 2 70 14 286 Move 15381 | 33 660 897 679 309 299 585 2788 101 2173 2486 90 2498 349 531 115 788 Hop 48 | . . . . . . . 10 . 11 13 . 11 . 3 . . Pick Up 137 | 5 16 33 . 3 4 18 14 . 9 15 3 7 2 5 2 1 Fast Attach 63 | 5 4 7 1 1 . 3 12 . 8 10 . 10 . 1 . 1 Attach 74 | 1 2 9 . . 4 5 16 . 9 4 . 9 . 5 1 9 Detach 31 | . 1 1 . 1 1 . 4 . 6 1 . 4 . 4 . 8 Swap 60 | . 2 6 . . . . 23 . 13 10 . 6 . . . . Drop 163 | . 8 30 1 4 4 10 44 . 15 16 3 14 2 5 . 7 Fire 189 | . 40 71 10 . 6 7 18 . 13 . . . . . . 24 Melee 309 | . . . . . . . 75 . 83 71 . 63 . 16 1 . Ram . | . . . . . . . . . . . . . . . . . Kick . | . . . . . . . . . . . . . . . . . Crush . | . . . . . . . . . . . . . . . . . Escape Stasis 36 | . . . . . . . . . . . . 36 . . . . Rewire . | . . . . . . . . . . . . . . . . . Trap . | . . . . . . . . . . . . . . . . . Miscellaneous . | . . . . . . . . . . . . . . . . . Route ------- -11/Scrapyard -10/Materials (discovered 4 exits: *Mat x3 / *Min) -9/Materials (discovered 3 exits: *Mat x2 / [*Min]) -9/Mines (discovered 4 exits: *Mat x2 / *Exi / [*Zio]) -9/Exiles (discovered 2 exits: [*Min x2]) -8/Mines (discovered 2 exits: *Mat x2) -8/Materials (discovered 2 exits: *Fac x2) -7/Factory (discovered 5 exits: *Fac x4 / [*Low]) -7/Waste -7/Factory (discovered 4 exits: *Fac x4) -6/Factory (discovered 4 exits: *Fac x4) -6/Waste -6/Factory (discovered 6 exits: *Fac x4 / *Low x2) -6/Lower Caves -6/Lower Caves -6/Data Miner -5/Proximity Caves History --------- Turn | Location | Event 24 | -11/Scrapyard | Discovered new exit (range 15) 48 | -11/Scrapyard | Entered Materials 71 | -10/Materials | Identified exit to Mines 71 | -10/Materials | Central database locked down 256 | -10/Materials | Discovered new exit (range 7) 309 | -10/Materials | Build established: Mutant 426 | -10/Materials | Discovered new exit (range 7) 729 | -10/Materials | Discovered new exit (range 3) 956 | -10/Materials | Entered another Materials area 956 | -9/Materials | Evolved 2 slots: Propulsion x1, Utility x1 1203 | -9/Materials | Central database locked down 1227 | -9/Materials | Discovered new exit (range 8) 1360 | -9/Materials | Discovered new exit (range 7) 2159 | -9/Materials | Discovered new exit (range 10) 2349 | -9/Materials | Build established: Hauler-Mutant 2593 | -9/Materials | Entered Mines 2675 | -9/Mines | Discovered new exit (range 10) 2715 | -9/Mines | YI-UF0 nonchalantly dropped a Grenade Launcher on the ground 2735 | -9/Mines | Destroyed YI-UF0 2742 | -9/Mines | Found Prototype Launcher 2742 | -9/Mines | Identified YI-UF0's Doublenader 2773 | -9/Mines | A Derelict revealed a hidden shortcut to a safe place 2799 | -9/Mines | Learned location of Storage (-7) 2926 | -9/Mines | Assisted by bots powering up and referring to "LRC-V3" 2970 | -9/Mines | Learned Materials terminal intel 3091 | -9/Mines | Deemed a non-threat by the Exiles lab entrance 3217 | -9/Mines | Discovered new exit (range 8) 3766 | -9/Mines | Discovered new exit (range 5) 3780 | -9/Mines | Entered Exiles 3780 | -9/Exiles | Accompanied by 3 allies 3803 | -9/Exiles | Discovered new exit (range 15) 3826 | -9/Exiles | Met 8R-AWN 3850 | -9/Exiles | Met EX-HEX 3908 | -9/Exiles | Met EX-BIN 3932 | -9/Exiles | Aligned with FarCom system 3933 | -9/Exiles | Given EX-Vault access code 3978 | -9/Exiles | Opened EX-Vault 3991 | -9/Exiles | Found Chronowheel 4019 | -9/Exiles | Found AWS/Gauss 4023 | -9/Exiles | Found 0b10 Alert Chip 4137 | -9/Exiles | Warned to stay clear of 0b10 Research branches 4185 | -9/Exiles | Met EX-DEC 4195 | -9/Exiles | Learned location of Zion (-7) 4294 | -9/Exiles | Discovered new exit (range 11) 4312 | -9/Exiles | Stole two prototypes: AWS/Gauss, Chronowheel 4312 | -9/Exiles | Entered Mines 4312 | -8/Mines | Accompanied by 3 allies 4378 | -8/Mines | Discovered new exit (range 8) 4698 | -8/Mines | Discovered new exit (range 5) 4879 | -8/Mines | Entered Materials 4879 | -8/Materials | Evolved 2 slots: Utility x2 4880 | -8/Materials | Loaded intel: 12 terminal locations 5105 | -8/Materials | Discovered new exit (range 16) 5632 | -8/Materials | Discovered new exit (range 16) 6044 | -8/Materials | Entered Factory 6044 | -7/Factory | Evolved 2 slots: Utility x2 6046 | -7/Factory | FarCom data flow suspended 6376 | -7/Factory | Build established: Hacker-Sprinter 6656 | -7/Factory | Discovered new exit (range 8) 6792 | -7/Factory | Discovered new exit (range 13) 7253 | -7/Factory | Identified exit to Factory 7271 | -7/Factory | Central database locked down 7497 | -7/Factory | Fabricated Adv. Sensor Array? 7556 | -7/Factory | Fabricated Adv. Hacking Suite (x1) 7662 | -7/Factory | Fabricated Adv. Hacking Suite? 7685 | -7/Factory | Manually triggered Chute Trap 7685 | -7/Factory | Sucked down chute 7685 | -7/Factory | Entered Waste 7686 | -7/Waste | Met a frightened Derelict 7689 | -7/Waste | Spotted C-40 Crusher 7690 | -7/Waste | Spotted C-40 Crusher 7699 | -7/Waste | Spotted C-40 Crusher 7700 | -7/Waste | EMP discharged 7700 | -7/Waste | System corruption reached 10% 7704 | -7/Waste | Spotted C-40 Crusher 7711 | -7/Waste | Discovered new exit (range 16) 7711 | -7/Waste | Spotted C-40 Crusher 7716 | -7/Waste | Identified exit to Factory 7716 | -7/Waste | Entered Factory 8246 | -7/Factory | Discovered exit to Factory (range 16) 8607 | -7/Factory | Local fabrication network quarantined 8633 | -7/Factory | Fabricated Imp. Cesium-ion Thruster? 8656 | -7/Factory | Fabricated Imp. Cesium-ion Thruster? 9056 | -7/Factory | Entered another Factory area 9056 | -6/Factory | Evolved 2 slots: Propulsion x1, Utility x1 9391 | -6/Factory | Identified exit to Factory 10231 | -6/Factory | Spotted B-75 Beast 10616 | -6/Factory | Adv. Hacking Suite fried by hacking feedback 10675 | -6/Factory | Sucked down chute 10675 | -6/Factory | Entered Waste 10682 | -6/Waste | Spotted C-40 Crusher 10683 | -6/Waste | Spotted C-40 Crusher 10686 | -6/Waste | Spotted C-40 Crusher 10690 | -6/Waste | Spotted C-40 Crusher 10695 | -6/Waste | Discovered new exit (range 14) 10707 | -6/Waste | Identified exit to Factory 10707 | -6/Waste | Entered Factory 10827 | -6/Factory | Identified exit to Lower Caves 10956 | -6/Factory | Discovered exit to Factory (range 5) 11135 | -6/Factory | Central database locked down 11229 | -6/Factory | Fabricated Exp. Sensor Array (x1) 11262 | -6/Factory | Fabricated Imp. Cesium-ion Thruster (x1) 11297 | -6/Factory | Fabricated Imp. Cesium-ion Thruster (x1) 11382 | -6/Factory | Fabricated Adv. Hacking Suite? 11396 | -6/Factory | Repaired Nuclear Pulse Thruster? 11735 | -6/Factory | Fabricated Adv. Hacking Suite? 11898 | -6/Factory | Local fabrication network quarantined 11903 | -6/Factory | Fabricated Adv. Hacking Suite? 12248 | -6/Factory | Entered Lower Caves 12248 | -6/Lower Caves | Spotted G8-J80(f) 12249 | -6/Lower Caves | Encountered a Master Thief 12251 | -6/Lower Caves | Spotted 05-GOG(f) 12252 | -6/Lower Caves | Encountered a Master Thief 12339 | -6/Lower Caves | Learned Factory stockpile data 12343 | -6/Lower Caves | Discovered new exit (range 13) 12347 | -6/Lower Caves | Identified exit to Lower Caves 12348 | -6/Lower Caves | Entered another Lower Caves area 12379 | -6/Lower Caves | Learned location of Extension (-4) 12424 | -6/Lower Caves | Spotted LV-WT0(f) 12425 | -6/Lower Caves | Encountered a Master Thief 12429 | -6/Lower Caves | Spotted H4-V69(f) 12429 | -6/Lower Caves | Spotted X6-PGK(f) 12429 | -6/Lower Caves | Spotted XS-VG7(f) 12430 | -6/Lower Caves | Encountered a Master Thief 12430 | -6/Lower Caves | Encountered a Master Thief 12430 | -6/Lower Caves | Encountered a Master Thief 12502 | -6/Lower Caves | Destroyed X6-PGK(f) 12505 | -6/Lower Caves | Mni. Grenade Launcher stolen by Master Thief 12505 | -6/Lower Caves | Destroyed LV-WT0(f) 12512 | -6/Lower Caves | Adv. Hacking Suite stolen by Master Thief 12518 | -6/Lower Caves | Found Prototype Device 12518 | -6/Lower Caves | Identified Heart of Steel 12627 | -6/Lower Caves | Discovered new exit (range 7) 12628 | -6/Lower Caves | Identified exit to Data Miner 12629 | -6/Lower Caves | Entered Data Miner 12629 | -6/Data Miner | Discovered new exit (range 6) 12635 | -6/Data Miner | Met Data Miner 12641 | -6/Data Miner | Acquired the access code to Warlord's prototype stash 12641 | -6/Data Miner | Learned location of Section 7 (-3) 12647 | -6/Data Miner | Received God Mode back door access code from Data Miner 12667 | -6/Data Miner | Destroyed Data Miner 12670 | -6/Data Miner | Found Prototype Hackware 12672 | -6/Data Miner | Found Prototype Hackware 12676 | -6/Data Miner | Data Conduit disabled 12680 | -6/Data Miner | Identified exit to Proximity Caves 12681 | -6/Data Miner | Entered Proximity Caves 12685 | -5/Proximity Caves | Identified Ghost Barrier 12710 | -5/Proximity Caves | Lost 4 parts (1p2n1w) 12947 | -5/Proximity Caves | Attracted the attention of an 0b10 checkpoint 13033 | -5/Proximity Caves | Learned Factory interactive machine intel 13170 | -5/Proximity Caves | Core integrity fell below 50% 13189 | -5/Proximity Caves | Spotted B-75 Beast 13223 | -5/Proximity Caves | Attracted the attention of an 0b10 outpost 13242 | -5/Proximity Caves | Core integrity fell below 20% 13265 | -5/Proximity Caves | Identified Deep Network Scanner 13280 | -5/Proximity Caves | Destroyed by S-27 Virus with Autogun Last Messages --------------- 13179_ System corrupted: Matter fused (-5). 13186_ Dropped Energy Well. 13187_ Extracted 99 energy. 13187_ Acquired Energy Well. 13194_ Acquired 2 matter. 13195_ Acquired 39 matter. 13222_ G-50 Soldier springs to life. 13223_ Y-72 Warden: "DETECTED UNIDENTIFIED DERELICT." 13227_ Y-72 Warden: "REQUESTING BACKUP." 13227_ Exp. Sensor Array destroyed. 13229_ Dropped Adv. ECM Suite. 13230_ Dropped Imp. Transmission Jammer. 13230_ Slug penetrates Wall. 13230_ Dropped Hvy. Plasma Cannon. 13231_ Dropped Lrg. Storage Unit. 13232_ Dropped Imp. Utility Shielding. 13233_ Imp. Propulsion Shielding destroyed. 13252_ Slug penetrates Wall. 13262_ System corrupted: Heat flow error (+159). 13265_ Identified Deep Network Scanner. Map ----- +----------------------------------------------------+ | ##??# #??# #### ##??????????????????????? | | #?## #??# ### ###???????????????????????? | | #### #??#! ## #?????????????????????????? | | ### #### % ### ##????????????????????????? | | ## !%* #?## #????????????????????????? | | !% % ##??# #????????????????????????? | | ### ####???# ##????????????????????????? | | ##?# #?????## #####??????????????????????? | | ##??# #???### #?# ###????????????????????? | | # ##???# ##### #?# #????????????????????? | | # ###??# #?# #????????????????????? | | # #??###### #?# #????????????????????? | | #### #???????# ### #????????????????????? | | #??# #?????#### ##????????????????????? | | #?## ####### #### #?????????????????????? | | #?# #### #?????????????????????? | | #### ##### ### ???????????????????? | | #?# ##### ####### #??????????????????? | | ##?# #??##?## ##??????????????????? | | #??# ###### ###?# ##??###???????????????????? | | #?# ##????# #?## #????????????????????????? | | ## ## #?????# #?# #????????????????????????? | | #####?# #?????# #?# # #?????????????????????????? | | #?????# #?????# ### #??????????? ??????????? | | #?????# ####### ## ####### $ #?????????????? | | ?????# # @ #??????????????? | | ????? ####### s # ###### #???????????????? | | ?????###?????## # ####????????????????????????? | | #??????????????#######???????????????????????????? | | ?????????????????????????????????????????????????? | | ?????????????????????????????????????????????????? | | ?????????????????????????????????????????????????? | | ?????????????????????????????????????????????????? | | ?????????????????????????????????????????????????? | | ?????????????????????????????????????????????????? | | ?????????????????????????????????????????????????? | | ?????????????????????????????????????????????????? | | ?????????????????????????????????????????????????? | | ?????????????????????????????????????????????????? | | ?????????????????????????????????????????????????? | | ?????????????????????????????????????????????????? | | ?????????????????????????????????????????????????? | | ?????????????????????????????????????????????????? | | ?????????????????????????????????????????????????? | | ?????????????????????????????????????????????????? | | | | | | | | | | | +----------------------------------------------------+ Best States ------------- Heat Dissipation 37 Energy Generation 18 Energy Capacity 600 Matter Stores 300 Matter Capacity 300 Sight Range 16 Robot Scan Range 30 Terrain Scan Density 10 ECM Strength 2 Power Amplification 20 Armor Coverage 225 Power Shielding 33 Propulsion Shielding 66 Utility Shielding 66 Evasion (%) 64 Recoil Reduction 2 Offensive Hacking 56 Defensive Hacking 40 Item Schematics ----------------- Hcp. Storage Unit | -9/Materials | Hacked Lrg. Storage Unit | -9/Materials | Hacked System Shield | -8/Materials | Hacked Hacking Suite | -8/Materials | Scanalyzed Adv. Hacking Suite | -7/Factory | Hacked Adv. Sensor Array | -7/Factory | Hacked Imp. Cesium-ion Thruster | -7/Factory | Hacked Imp. System Shield | -7/Factory | Hacked Exp. Sensor Array | -6/Factory | Hacked Fusion Compressor | -6/Factory | Hacked Adv. System Shield | -6/Factory | Hacked Exp. Propulsion Shielding | -6/Factory | Hacked Mic. Fission Core | -6/Factory | Hacked Imp. Remote Shield | -6/Factory | Hacked Reaction Control System | -6/Factory | Hacked Linear Gravjet | -6/Factory | Hacked Combat Drone Bay | -6/Data Miner | Free Lgt. Regenerative Plating | -6/Data Miner | Free Exp. Flexi-carbon Leg | -6/Data Miner | Free Cmb. Gravmag System | -6/Data Miner | Free Exp. Cesium-ion Thruster | -6/Data Miner | Free Triangulator | -6/Data Miner | Free Exp. Targeting Computer | -6/Data Miner | Free Tactical Coordination Suite | -6/Data Miner | Free Mni. Smartbomb Launcher | -6/Data Miner | Free Robot Schematics ------------------ I-47 Archangel | -6/Data Miner | Free I-36 Angel | -6/Data Miner | Free H-66 Slayer | -6/Data Miner | Free G-67 Veteran | -6/Data Miner | Free G-50 Soldier | -6/Data Miner | Free S-27 Virus | -6/Data Miner | Free Fabricated ------------ Adv. Sensor Array | x1 | -7/Factory Adv. Hacking Suite | x1 | -7/Factory Adv. Hacking Suite | x1 | -7/Factory Imp. Cesium-ion Thruster | x1 | -7/Factory Imp. Cesium-ion Thruster | x1 | -7/Factory Exp. Sensor Array | x1 | -6/Factory Imp. Cesium-ion Thruster | x1 | -6/Factory Imp. Cesium-ion Thruster | x1 | -6/Factory Adv. Hacking Suite | x1 | -6/Factory Adv. Hacking Suite | x1 | -6/Factory Adv. Hacking Suite | x1 | -6/Factory Alien Tech Used ----------------- None Achievements -------------- None Challenges ------------ None Game ------ Seed MicroGravityKatana Manual? 0 Play Time 03:29:29 Cumulative 128.1 hours Start 2021.06.17 @ 15:34:30 End 2021.06.17 @ 19:40:33 Sessions 1 Manual Loads 0 Difficulty Rogue Special Mode None Game No. 38 Rogue 21 Adventurer 17 Explorer 0 Win Type - Total 6 Types 5/0/0/1/0/0/0/0/0 Lore% 63 Gallery% 63 Achievement% 57 Wizard Run 0 Options --------- ASCII 0 Keyboard 0 Movement Arrows Keybinds 0 Fullscreen 1 Font 28/Dina Map View 72x54 Tactical HUD 1 Map Filters NONE Filters NONE Steam 1 RUN: 87d22fb0-cbbb-4280-b4e4-918de42c57f0